[Event "Romanian Open 2021"]
[Site "Alba Iulia"]
[Date "2021.11.22"]
[Round "2.10"]
[White "Maria, Lia-Alexandra"]
[Black "Tudor, Henry Edward"]
[Result "1-0"]
[ECO "B33"]
[WhiteElo "1784"]
[BlackElo "1753"]
[Annotator "NA RC"]
[PlyCount "107"]
[EventDate "2021.11.21"]
[EventType "swiss"]
[EventCountry "ROU"]
[SourceTitle "playchess.com"]
[Source "ChessBase"]
[SourceQuality "1"]
[TimeControl "5400+30"]

1. e4 {[%emt 0:00:04]} c5 {[%emt 0:00:08]} 2. Nf3 {[%emt 0:00:05]} Nc6 {[%emt 0:00:04]} 3. d4 {[%emt 0:00:06]} cxd4 {[%emt 0:00:05]} 4. Nxd4 {[%emt 0:00:06]} Nf6 {[%emt 0:00:06]} 5. Nc3 {[%emt 0:00:13]} e5 {[%emt 0:00:04]} 6. Ndb5 {[%emt 0:00:10]} d6 {[%emt 0:00:07]} 7. Bg5 {[%emt 0:00:06]} a6 {[%emt 0:00:17]} 8. Na3 {[%emt 0:00:04]} b5 {[%emt 0:00:21]} 9. Nd5 {[%emt 0:00:07]} Be6 {[%emt 0:02:29]} 10. Bxf6 {[%emt 0:08:18]} gxf6 {[%emt 0:00:12]} 11. c3 {[%emt 0:00:14]} Rg8 {[%emt 0:30:08]} 12. Nc2 {[%emt 0:04:00]} Rg6 {[%emt 0:13:37]} 13. Nce3 {[%emt 0:03:00]} Bh6 {[%emt 0:03:02]} 14. a4 {[%emt 0:06:55]} b4 {[%emt 0:07:35]} 15. a5 {[%emt 0:04:40]} Bxe3 {[%emt 0:12:03]} 16. Nxe3 {[%emt 0:00:49]} b3 {[%emt 0:05:19]} 17. Nc4 {[%emt 0:06:45]} Bxc4 {[%emt 0:03:26]} 18. Bxc4 {[%emt 0:00:09]} Rxg2 {[%emt 0:01:00]} 19. Qxb3 {[%emt 0:03:40]} Rb8 {[%emt 0:01:27]} 20. Bxf7+ {[%emt 0:04:26]} Kf8 {[%emt 0:00:11]} 21. Qa2 {[%emt 0:02:47]} Nxa5 {[%emt 0:01:18]} 22. b4 {[%emt 0:01:22]} Qc7 {[%emt 0:02:16]} 23. Kf1 {[%emt 0:01:54]} Rg7 {[%emt 0:03:51]} 24. Bh5 {[%emt 0:01:46]} Nc4 {[%emt 0:08:12]} 25. Be2 {[%emt 0:03:20]} Rc8 {[%emt 0:01:14]} 26. Rd1 {[%emt 0:01:20]} Qc6 {[%emt 0:01:34]} 27. Rd5 {[%emt 0:02:56]} Nb6 {[%emt 0:01:05]} 28. Rd3 {[%emt 0:03:34]} Qxe4 {[%emt 0:01:48]} 29. f3 {[%emt 0:00:32]} Qc4 {[%emt 0:01:27]} 30. Qd2 {[%emt 0:01:40]} d5 {[%emt 0:00:20]} 31. Qh6 {[%emt 0:03:25]} Qc6 {[%emt 0:00:32]} 32. f4 {[%emt 0:01:47]} Rcc7 {[%emt 0:00:39]} 33. fxe5 {[%emt 0:01:21]} fxe5 {[%emt 0:00:21]} 34. Rf3+ {[%emt 0:00:15]} Kg8 {[%emt 0:00:21]} 35. Qh4 {[%emt 0:03:01]} Rc8 {[%emt 0:00:49]} 36. Bxa6 {[%emt 0:01:32]} Ra8 {[%emt 0:00:24]} 37. Rg1 {[%emt 0:02:59]} Qe6 {[%emt 0:00:37]} 38. Rf6 {[%emt 0:05:03]} Rxg1+ {[%emt 0:01:01]} 39. Kxg1 {[%emt 0:00:08]} Qe7 {[%emt 0:00:00]} 40. Rg6+ {[%emt 0:01:09]} hxg6 {[%emt 0:00:29]} 41. Qxe7 {[%emt 0:00:09]} Rxa6 {[%emt 0:00:08]} 42. Qxe5 {[%emt 0:00:40]} Kf7 {[%emt 0:00:18]} 43. b5 {[%emt 0:00:16]} Ra1+ {[%emt 0:00:35]} 44. Kg2 {[%emt 0:00:05]} Nd7 {[%emt 0:00:49]} 45. Qxd5+ {[%emt 0:00:07]} Ke7 {[%emt 0:00:05]} 46. b6 {[%emt 0:01:25]} Ra6 {[%emt 0:00:45]} 47. b7 {[%emt 0:00:09]} Rb6 {[%emt 0:00:18]} 48. c4 {[%emt 0:00:16]} Rb2+ {[%emt 0:00:39]} 49. Kg3 {[%emt 0:00:08]} Rb3+ {[%emt 0:00:09]} 50. Kh4 {[%emt 0:00:16]} Rb4 {[%emt 0:00:32]} 51. Kg5 {[%emt 0:00:46]} Rb6 {[%emt 0:00:26]} 52. c5 {[%emt 0:00:42]} Rb5 {[%emt 0:00:40]} 53. Kxg6 {[%emt 0:00:18]} Kd8 {[%emt 0:00:48]} 54. b8=Q+ {[%emt 0:00:37]} 1-0

[Event "Romanian Open 2021"]
[Site "Alba Iulia"]
[Date "2021.11.22"]
[Round "2.11"]
[White "Arion, Ilie"]
[Black "Butolo, Alexandru-Mircea"]
[Result "0-1"]
[ECO "E11"]
[WhiteElo "1758"]
[BlackElo "1768"]
[Annotator "NA RC"]
[PlyCount "104"]
[EventDate "2021.11.21"]
[EventType "swiss"]
[EventCountry "ROU"]
[SourceTitle "playchess.com"]
[Source "ChessBase"]
[SourceQuality "1"]
[TimeControl "5400+30"]

1. d4 {[%emt 0:00:13]} Nf6 {[%emt 0:02:12]} 2. c4 {[%emt 0:01:21]} e6 {[%emt 0:00:06]} 3. g3 {[%emt 0:01:21]} d5 {[%emt 0:00:31]} 4. Nf3 {[%emt 0:02:44]} Bb4+ {[%emt 0:00:28]} 5. Bd2 {[%emt 0:01:05]} a5 {[%emt 0:00:08]} 6. Bxb4 {[%emt 0:04:12]} axb4 {[%emt 0:00:30]} 7. Bg2 {[%emt 0:01:12]} O-O {[%emt 0:00:31]} 8. O-O {[%emt 0:01:09]} Nc6 {[%emt 0:03:53]} 9. Qc2 {[%emt 0:01:12]} Bd7 {[%emt 0:03:20]} 10. Nbd2 {[%emt 0:01:25]} Qe7 {[%emt 0:00:34]} 11. e4 {[%emt 0:01:22]} dxe4 {[%emt 0:01:32]} 12. Nxe4 {[%emt 0:00:37]} Rfe8 {[%emt 0:03:01]} 13. Rfe1 {[%emt 0:02:26]} Nxe4 {[%emt 0:03:44]} 14. Qxe4 {[%emt 0:00:50]} Qf6 {[%emt 0:02:16]} 15. Ne5 {[%emt 0:00:21]} Rad8 {[%emt 0:01:41]} 16. Rad1 {[%emt 0:02:03]} Qe7 {[%emt 0:07:09]} 17. Qf4 {[%emt 0:02:30]} Nxe5 {[%emt 0:00:39]} 18. Qxe5 {[%emt 0:01:04]} c6 {[%emt 0:08:44]} 19. Qc7 {[%emt 0:02:52]} Bc8 {[%emt 0:08:10]} 20. Qb6 {[%emt 0:07:04]} e5 {[%emt 0:02:29]} 21. d5 {[%emt 0:03:27]} cxd5 {[%emt 0:00:43]} 22. Rxd5 {[%emt 0:01:06]} Rxd5 {[%emt 0:01:53]} 23. Bxd5 {[%emt 0:00:10]} Kh8 {[%emt 0:02:04]} 24. Qb5 {[%emt 0:02:36]} f6 {[%emt 0:00:32]} 25. Re3 {[%emt 0:01:15]} Bh3 {[%emt 0:04:20]} 26. Qxb7 {[%emt 0:00:51]} Qxb7 {[%emt 0:00:06]} 27. Bxb7 {[%emt 0:00:06]} Re7 {[%emt 0:00:04]} 28. Bg2 {[%emt 0:01:57]} Be6 {[%emt 0:01:35]} 29. Rd3 {[%emt 0:01:18]} g6 {[%emt 0:00:05]} 30. b3 {[%emt 0:00:15]} f5 {[%emt 0:00:39]} 31. c5 {[%emt 0:00:11]} e4 {[%emt 0:00:13]} 32. Rd6 {[%emt 0:00:11]} Kg7 {[%emt 0:00:16]} 33. Bf1 {[%emt 0:00:11]} Kf7 {[%emt 0:00:57]} 34. Ba6 {[%emt 0:03:24]} g5 {[%emt 0:00:23]} 35. c6 {[%emt 0:00:23]} Rc7 {[%emt 0:01:13]} 36. Bb7 {[%emt 0:00:12]} Kf6 {[%emt 0:01:37]} 37. Rd4 {[%emt 0:00:28]} Ke5 {[%emt 0:00:15]} 38. Rxb4 {[%emt 0:00:09]} f4 {[%emt 0:00:06]} 39. a4 {[%emt 0:03:57]} Rf7 {[%emt 0:02:33]} 40. c7 {[%emt 0:04:42]} Rxc7 {[%emt 0:00:38]} 41. Rxe4+ {[%emt 0:01:57]} Kf5 {[%emt 0:01:03]} 42. Rb4 {[%emt 0:00:08]} Ke5 {[%emt 0:02:03]} 43. Kg2 {[%emt 0:00:17]} Rxb7 {[%emt 0:00:07]} 44. Rxb7 {[%emt 0:00:47]} Bd5+ {[%emt 0:00:17]} 45. Kh3 {[%emt 0:00:18]} Bxb7 {[%emt 0:00:06]} 46. Kg4 {[%emt 0:00:06]} f3 {[%emt 0:03:19]} 47. b4 {[%emt 0:00:48]} Ke4 {[%emt 0:01:54]} 48. b5 {[%emt 0:00:14]} Kd3 {[%emt 0:00:36]} 49. a5 {[%emt 0:00:28]} Ke2 {[%emt 0:00:04]} 50. a6 {[%emt 0:00:08]} Bc8+ {[%emt 0:00:04]} 51. Kxg5 {[%emt 0:00:27]} Kxf2 {[%emt 0:00:05]} 52. a7 {[%emt 0:00:14]} Bb7 {[%emt 0:00:07]} 0-1